[Event "Elitserien Allsvenskan 2018-19"]
[Site "Sweden"]
[Date "2018.11.09"]
[Round "1"]
[White "Von Bahr, Oskar"]
[Black "Berovski, Krum"]
[Result "*"]
[ECO "C15"]
[WhiteElo "2409"]
[BlackElo "2321"]
[Annotator "RC"]
[PlyCount "20"]
[EventDate "2018.11.09"]
[EventType "team-tourn"]
[EventCountry "SWE"]
[SourceTitle "playchess.com"]
[Source "ChessBase"]
[SourceQuality "1"]
[TimeControl "40/5400+30:1800+30"]

1. d4 {[%emt 0:00:00]} e6 {[%emt 0:00:00]} 2. e4 {[%emt 0:00:09]} d5 {[%emt 0:00:00]} 3. Nc3 {[%emt 0:00:07]} Bb4 {[%emt 0:00:05]} 4. Nge2 {[%emt 0:00:15]} dxe4 {[%emt 0:00:22]} 5. a3 {[%emt 0:00:05]} Bxc3+ {[%emt 0:00:24]} 6. Nxc3 {[%emt 0:00:03]} Bd7 {[%emt 0:00:31]} 7. Qg4 {[%emt 0:11:21]} Nf6 {[%emt 0:01:56]} 8. Qxg7 {[%emt 0:10:23]} Rg8 {[%emt 1:30:42]} 9. Qh6 {[%emt 0:00:03]} Rg6 {[%emt 0:04:28]} 10. Qh4 {[%emt 0:01:21]} Bc6 {[%emt 0:03:23]} *

[Event "Elitserien Allsvenskan 2018-19"]
[Site "Sweden"]
[Date "2018.11.09"]
[Round "1"]
[White "Kabadayi, Can"]
[Black "Namini, Armin"]
[Result "*"]
[ECO "A14"]
[WhiteElo "2213"]
[BlackElo "2205"]
[Annotator "NA RC"]
[PlyCount "29"]
[EventDate "2018.11.09"]
[EventType "team-tourn"]
[EventCountry "SWE"]
[SourceTitle "playchess.com"]
[Source "ChessBase"]
[SourceQuality "1"]
[TimeControl "40/5400+30:1800+30"]

{[%evp 19,29,2,2,2,0,0,0,32767,10,-22,16,0]} 1. Nf3 {[%emt 1:30:30]} d5 {[%emt 1:30:30]} 2. g3 {[%emt 0:00:30]} Nf6 {[%emt 0:00:30]} 3. Bg2 {[%emt 0:00:30]} e6 {[%emt 0:00:30]} 4. O-O {[%emt 0:00:30]} Be7 {[%emt 0:00:30]} 5. b3 {[%emt 0:00:30]} O-O {[%emt 0:00:30]} 6. Bb2 {[%emt 0:00:30]} c5 {[%emt 0:00:30]} 7. c4 {[%emt 0:00:30]} Nc6 {[%emt 0:00:30]} 8. e3 {[%emt 0:00:30]} Bd7 {[%emt 0:00:30]} 9. d3 {[%emt 0:00:30]} Qc7 {[%emt 0:00:30]} 10. a3 {[%emt 0:00:30]} dxc4 {[%emt 0:00:30]} 11. bxc4 {[%emt 0:00:30]} Rfd8 {[%emt 0:00:30]} 12. Qe2 {[%emt 0:00:30]} a6 {[%emt 0:00:30]} 13. Nbd2 {[%emt 0:00:30]} Rac8 {[%emt 0:00:30]} 14. Rac1 {[%emt 0:00:30]} Be8 {[%emt 0:00:30]} 15. Ne1 $11 {[%emt 0:00:30]} *

[Event "Elitserien Allsvenskan 2018-19"]
[Site "Sweden"]
[Date "2018.11.10"]
[Round "2"]
[White "Salih, Akar Ali Salih"]
[Black "Wengholm, Anders"]
[Result "1/2-1/2"]
[ECO "B42"]
[WhiteElo "2242"]
[BlackElo "2210"]
[Annotator "NA"]
[PlyCount "127"]
[EventDate "2018.11.09"]
[EventType "team-tourn"]
[EventCountry "SWE"]
[SourceTitle "playchess.com"]
[Source "ChessBase"]
[SourceQuality "1"]
[TimeControl "40/5400+30:1800+30"]

1. e4 {[%emt 0:00:00]} c5 {[%emt 0:00:00]} 2. Nf3 {[%emt 0:00:00]} e6 {[%emt 0:00:08]} 3. d4 {[%emt 0:00:20]} cxd4 {[%emt 0:00:13]} 4. Nxd4 {[%emt 0:00:09]} a6 {[%emt 0:00:58]} 5. Bd3 {[%emt 0:01:37]} d6 {[%emt 0:02:06]} 6. c4 {[%emt 0:06:41]} Nf6 {[%emt 0:01:29]} 7. Nc3 {[%emt 0:01:05]} g6 {[%emt 0:03:32]} 8. Qe2 {[%emt 0:02:21]} Bg7 {[%emt 0:00:13]} 9. O-O {[%emt 0:02:05]} O-O {[%emt 0:00:08]} 10. Nf3 {[%emt 0:01:31]} Nc6 {[%emt 0:23:19]} 11. Rd1 {[%emt 0:01:50]} Ng4 {[%emt 0:10:01]} 12. Bf4 {[%emt 0:05:51]} Nge5 {[%emt 0:01:49]} 13. Nxe5 {[%emt 0:11:29]} dxe5 {[%emt 0:00:53]} 14. Be3 {[%emt 0:07:22]} Nd4 {[%emt 0:05:16]} 15. Bxd4 {[%emt 0:02:38]} exd4 {[%emt 0:00:24]} 16. Nb1 {[%emt 0:02:47]} Qd6 {[%emt 0:12:07]} 17. Nd2 {[%emt 0:02:22]} e5 {[%emt 0:02:37]} 18. Rac1 {[%emt 0:02:12]} b6 {[%emt 0:00:25]} 19. c5 {[%emt 0:10:40]} bxc5 {[%emt 0:01:03]} 20. Nb3 {[%emt 0:00:28]} Be6 {[%emt 0:19:11]} 21. Nxc5 {[%emt 0:00:07]} Bxa2 {[%emt 0:03:05]} 22. b4 {[%emt 0:00:29]} Be6 {[%emt 0:00:17]} 23. Bxa6 {[%emt 0:00:05]} Rab8 {[%emt 0:00:40]} 24. b5 {[%emt 0:03:58]} Bh6 {[%emt 0:01:19]} 25. Nxe6 {[%emt 0:02:14]} Qxe6 {[%emt 0:01:21]} 26. Rc6 {[%emt 0:00:10]} Qb3 {[%emt 0:00:50]} 27. Qc2 {[%emt 0:01:33]} Qxc2 {[%emt 0:00:24]} 28. Rxc2 {[%emt 0:00:02]} Bg5 {[%emt 0:00:08]} 29. Rc5 {[%emt 0:05:02]} Rfe8 {[%emt 0:01:15]} 30. Kf1 {[%emt 0:01:59]} Bd8 {[%emt 0:01:48]} 31. Ke2 {[%emt 0:01:01]} Bb6 {[%emt 0:00:37]} 32. Rd5 {[%emt 0:01:08]} f6 {[%emt 0:02:17]} 33. Rc1 {[%emt 0:01:18]} Red8 {[%emt 0:01:24]} 34. Rxd8+ {[%emt 0:00:25]} Bxd8 {[%emt 0:00:09]} 35. Kd3 {[%emt 0:05:38]} Bb6 {[%emt 0:01:51]} 36. g3 {[%emt 0:02:03]} Kf7 {[%emt 0:00:09]} 37. f4 {[%emt 0:00:29]} Ke7 {[%emt 0:00:10]} 38. Rc6 {[%emt 0:00:59]} Bd8 {[%emt 0:01:08]} 39. Kc4 {[%emt 0:00:51]} Bb6 {[%emt 0:00:17]} 40. Bc8 {[%emt 0:03:25]} Ba5 {[%emt 0:01:02]} 41. Bg4 {[%emt 0:32:12]} exf4 {[%emt 0:04:47]} 42. gxf4 {[%emt 0:00:00]} Bd2 {[%emt 0:00:05]} 43. Rc7+ {[%emt 0:00:00]} Kf8 {[%emt 0:07:54]} 44. Rxh7 {[%emt 0:00:00]} Bxf4 {[%emt 0:00:43]} 45. Be6 {[%emt 0:00:00]} Be5 {[%emt 0:02:38]} 46. h4 {[%emt 0:00:00]} Rd8 {[%emt 0:05:27]} 47. Kd3 {[%emt 0:00:15]} Rb8 {[%emt 0:00:53]} 48. Bc4 {[%emt 0:00:10]} Rb6 {[%emt 0:04:36]} 49. Kc2 {[%emt 0:04:23]} Bg3 {[%emt 0:03:30]} 50. Kd3 {[%emt 0:01:32]} Be5 {[%emt 0:00:02]} 51. Rf7+ {[%emt 0:01:05]} Ke8 {[%emt 0:00:06]} 52. Ra7 {[%emt 0:01:10]} f5 {[%emt 0:02:40]} 53. exf5 {[%emt 0:01:09]} gxf5 {[%emt 0:00:01]} 54. Ra6 {[%emt 0:00:14]} Rxa6 {[%emt 0:07:35]} 55. bxa6 {[%emt 0:00:06]} Bb8 {[%emt 0:00:00]} 56. Kxd4 {[%emt 0:01:34]} Kf8 {[%emt 0:00:00]} 57. Be6 {[%emt 0:00:32]} f4 {[%emt 0:00:00]} 58. Kc5 {[%emt 0:01:10]} Ba7+ {[%emt 0:00:00]} 59. Kd6 {[%emt 0:00:31]} f3 {[%emt 0:00:00]} 60. Ke5 {[%emt 0:00:19]} f2 {[%emt 0:00:00]} 61. Bc4 {[%emt 0:00:05]} Kg7 {[%emt 0:00:00]} 62. Kf4 {[%emt 0:00:15]} Kh6 {[%emt 0:00:00]} 63. Kg4 {[%emt 0:00:06]} Bb6 {[%emt 0:00:00]} 64. Be2 {[%emt 0:08:48]} 1/2-1/2

[Event "Elitserien Allsvenskan 2018-19"]
[Site "Sweden"]
[Date "2018.11.10"]
[Round "2"]
[White "Namini, Armin"]
[Black "Cederstam Barsk, Carl"]
[Result "0-1"]
[ECO "A37"]
[WhiteElo "2205"]
[BlackElo "2317"]
[Annotator "ChessBase"]
[PlyCount "112"]
[EventDate "2018.11.09"]
[EventType "team-tourn"]
[EventCountry "SWE"]
[SourceTitle "playchess.com"]
[Source "ChessBase"]
[SourceQuality "1"]
[TimeControl "40/5400+30:1800+30"]

1. c4 {[%emt 0:02:37]} c5 {[%emt 0:00:00]} 2. g3 {[%emt 0:00:06]} g6 {[%emt 0:00:00]} 3. Bg2 {[%emt 0:00:10]} Bg7 {[%emt 0:00:00]} 4. Nc3 {[%emt 0:00:05]} Nc6 {[%emt 0:00:01]} 5. Nf3 {[%emt 0:00:08]} d6 {[%emt 0:00:07]} 6. a3 {[%emt 0:01:09]} e6 {[%emt 0:00:42]} 7. O-O {[%emt 0:01:07]} Nge7 {[%emt 0:00:05]} 8. d3 {[%emt 0:00:50]} O-O {[%emt 0:00:32]} 9. Bg5 {[%emt 0:00:46]} Qd7 {[%emt 1:33:03]} 10. Rb1 {[%emt 0:01:55]} b6 {[%emt 0:00:00]} 11. Ne4 {[%emt 0:04:48]} f5 {[%emt 0:00:00]} 12. Nc3 {[%emt 0:00:46]} Bb7 {[%emt 0:00:00]} 13. Qd2 {[%emt 0:06:38]} Nd4 {[%emt 0:00:00]} 14. Nxd4 {[%emt 0:05:22]} cxd4 {[%emt 0:00:00]} 15. Na2 {[%emt 0:00:46]} Bxg2 {[%emt 0:00:00]} 16. Kxg2 {[%emt 0:02:42]} Nc6 {[%emt 0:00:00]} 17. Nb4 {[%emt 0:04:32]} Ne5 {[%emt 0:00:00]} 18. Bh6 {[%emt 0:00:43]} Bxh6 {[%emt 0:00:00]} 19. Qxh6 {[%emt 0:00:12]} Qb7+ {[%emt 0:00:00]} 20. Kg1 {[%emt 0:00:57]} Ng4 {[%emt 0:00:00]} 21. Qh3 {[%emt 0:06:16]} Qg7 {[%emt 0:00:00]} 22. Nc6 {[%emt 0:07:08]} Rac8 {[%emt 0:00:00]} 23. Qg2 {[%emt 0:03:59]} Rc7 {[%emt 0:00:00]} 24. h3 {[%emt 0:10:28]} Nh6 {[%emt 0:00:00]} 25. e3 {[%emt 0:02:37]} dxe3 {[%emt 0:00:00]} 26. fxe3 {[%emt 0:00:05]} Nf7 {[%emt 0:00:00]} 27. Nd4 {[%emt 0:03:12]} Qe5 {[%emt 0:00:00]} 28. Rbe1 {[%emt 0:01:26]} Re8 {[%emt 0:00:00]} 29. Nb5 {[%emt 0:01:14]} Rce7 {[%emt 0:00:00]} 30. Kh2 {[%emt 0:04:41]} d5 {[%emt 0:00:00]} 31. b3 {[%emt 0:08:16]} a6 {[%emt 0:00:00]} 32. Nd4 {[%emt 0:00:50]} Qd6 {[%emt 0:00:00]} 33. Rd1 {[%emt 0:06:09]} Qxa3 {[%emt 0:02:39]} 34. Ra1 {[%emt 0:01:22]} Qd6 {[%emt 0:01:55]} 35. Rxa6 {[%emt 0:00:42]} dxc4 {[%emt 0:00:59]} 36. dxc4 {[%emt 0:02:57]} e5 {[%emt 0:03:57]} 37. Nb5 {[%emt 0:03:18]} Qd3 {[%emt 0:00:02]} 38. e4 {[%emt 0:01:23]} fxe4 {[%emt 0:01:13]} 39. Rxb6 {[%emt 0:01:44]} Ng5 {[%emt 0:00:53]} 40. Nd6 {[%emt 0:01:15]} Nf3+ {[%emt 0:01:25]} 41. Kh1 {[%emt 0:30:20]} Rf8 {[%emt 0:30:42]} 42. c5 {[%emt 0:00:00]} Ra7 {[%emt 0:00:00]} 43. b4 {[%emt 0:00:00]} Kh8 {[%emt 0:00:00]} 44. Rc1 {[%emt 0:00:00]} e3 {[%emt 0:00:00]} 45. Rb8 {[%emt 0:00:00]} Rxb8 {[%emt 0:00:00]} 46. Qxf3 {[%emt 0:00:00]} Kg8 {[%emt 0:00:00]} 47. Rf1 {[%emt 0:00:00]} Rba8 {[%emt 0:00:00]} 48. Qf6 {[%emt 0:01:13]} Qd5+ {[%emt 0:00:00]} 49. Kg1 {[%emt 0:01:19]} e2 {[%emt 0:00:00]} 50. Re1 {[%emt 0:00:57]} Rf8 {[%emt 0:00:00]} 51. Qh4 {[%emt 0:00:33]} Qf3 {[%emt 0:00:00]} 52. Qc4+ {[%emt 0:00:18]} Kg7 {[%emt 0:00:00]} 53. Ne4 {[%emt 0:01:10]} Ra2 {[%emt 0:00:00]} 54. c6 {[%emt 0:01:39]} Rd2 {[%emt 0:00:00]} 55. Qc3 {[%emt 0:02:30]} Qf1+ {[%emt 0:00:00]} 56. Kh2 {[%emt 0:00:28]} Rf2+ {[%emt 0:00:00]} 0-1

[Event "Elitserien Allsvenskan 2018-19"]
[Site "Sweden"]
[Date "2018.11.11"]
[Round "3"]
[White "Smith, Axel"]
[Black "Ernst, Thomas"]
[Result "1/2-1/2"]
[ECO "D42"]
[WhiteElo "2492"]
[BlackElo "2321"]
[Annotator "ChessBase"]
[PlyCount "89"]
[EventDate "2018.11.09"]
[EventType "team-tourn"]
[EventCountry "SWE"]
[SourceTitle "playchess.com"]
[Source "ChessBase"]
[SourceQuality "1"]
[TimeControl "40/5400+30:1800+30"]

1. c4 {[%emt 0:00:16]} c5 {[%emt 0:00:00]} 2. Nf3 {[%emt 0:00:09]} Nc6 {[%emt 0:00:00]} 3. e3 {[%emt 0:00:04]} Nf6 {[%emt 0:02:11]} 4. d4 {[%emt 0:00:20]} cxd4 {[%emt 0:00:15]} 5. exd4 {[%emt 0:00:02]} d5 {[%emt 0:00:14]} 6. Nc3 {[%emt 0:00:01]} e6 {[%emt 0:01:07]} 7. cxd5 {[%emt 0:01:05]} Nxd5 {[%emt 0:00:54]} 8. Bd3 {[%emt 0:00:13]} Be7 {[%emt 0:00:35]} 9. O-O {[%emt 0:00:13]} O-O {[%emt 0:00:25]} 10. Re1 {[%emt 0:02:18]} Bf6 {[%emt 0:01:25]} 11. Be4 {[%emt 0:05:35]} Nce7 {[%emt 0:04:14]} 12. Ne5 {[%emt 0:10:31]} Bd7 {[%emt 0:14:01]} 13. Qd3 {[%emt 0:07:37]} g6 {[%emt 0:00:16]} 14. Bh6 {[%emt 0:06:28]} Bg7 {[%emt 0:00:35]} 15. Bxg7 {[%emt 0:03:19]} Kxg7 {[%emt 0:00:07]} 16. Bxd5 {[%emt 0:08:44]} Nxd5 {[%emt 0:00:29]} 17. Nxd5 {[%emt 0:01:40]} exd5 {[%emt 0:00:07]} 18. Qb3 {[%emt 0:07:15]} Bf5 {[%emt 0:02:06]} 19. Qxb7 {[%emt 0:12:52]} Rb8 {[%emt 0:00:09]} 20. Qxa7 {[%emt 0:00:11]} Rxb2 {[%emt 0:00:09]} 21. g3 {[%emt 0:12:45]} Qa8 {[%emt 0:03:49]} 22. Qxa8 {[%emt 0:00:54]} Rxa8 {[%emt 0:00:09]} 23. a3 {[%emt 0:06:42]} Rd2 {[%emt 0:01:10]} 24. Nf3 {[%emt 0:00:45]} Rc2 {[%emt 0:06:37]} 25. a4 {[%emt 0:02:16]} Rc4 {[%emt 0:01:21]} 26. a5 {[%emt 0:00:15]} Be4 {[%emt 0:00:45]} 27. Re3 {[%emt 0:03:41]} Ra6 {[%emt 0:10:08]} 28. Kf1 {[%emt 0:01:51]} Bxf3 {[%emt 0:01:16]} 29. Rxf3 {[%emt 0:00:01]} Rxd4 {[%emt 0:00:11]} 30. Rb3 {[%emt 0:01:23]} Rd2 {[%emt 0:08:35]} 31. Rb6 {[%emt 0:02:20]} Rxb6 {[%emt 0:00:21]} 32. axb6 {[%emt 0:00:02]} Rb2 {[%emt 0:00:11]} 33. Ra5 {[%emt 0:01:15]} Rxb6 {[%emt 0:00:22]} 34. Rxd5 {[%emt 0:00:03]} Kf6 {[%emt 0:00:20]} 35. Kg2 {[%emt 0:00:06]} Rb2 {[%emt 0:00:23]} 36. Kf1 {[%emt 0:00:12]} Kg7 {[%emt 0:00:22]} 37. Kg2 {[%emt 0:00:03]} h5 {[%emt 0:00:22]} 38. Kf1 {[%emt 0:00:33]} Rb4 {[%emt 0:00:21]} 39. Kg2 {[%emt 0:00:41]} h4 {[%emt 0:00:34]} 40. Kh3 {[%emt 0:00:34]} hxg3 {[%emt 0:00:12]} 41. hxg3 {[%emt 0:30:13]} Ra4 {[%emt 0:30:22]} 42. Kg2 {[%emt 0:00:08]} Rb4 {[%emt 0:00:13]} 43. Kh3 {[%emt 0:00:09]} Ra4 {[%emt 0:00:15]} 44. Kg2 {[%emt 0:00:04]} Rb4 {[%emt 0:00:15]} 45. Kh3 {[%emt 0:00:04]} 1/2-1/2

[Event "Elitserien Allsvenskan 2018-19"]
[Site "Sweden"]
[Date "2018.11.11"]
[Round "3"]
[White "Johansson, Linus"]
[Black "Malmstig, Erik"]
[Result "1-0"]
[ECO "A07"]
[WhiteElo "2464"]
[BlackElo "2333"]
[Annotator "ChessBase"]
[PlyCount "85"]
[EventDate "2018.11.09"]
[EventType "team-tourn"]
[EventCountry "SWE"]
[SourceTitle "playchess.com"]
[Source "ChessBase"]
[SourceQuality "1"]
[TimeControl "40/5400+30:1800+30"]

1. Nf3 {[%emt 0:00:00]} Nf6 {[%emt 0:00:00]} 2. g3 {[%emt 0:00:00]} d5 {[%emt 0:00:27]} 3. Bg2 {[%emt 0:00:00]} c6 {[%emt 0:01:13]} 4. O-O {[%emt 0:00:11]} Bg4 {[%emt 0:00:19]} 5. h3 {[%emt 0:00:23]} Bf5 {[%emt 0:00:28]} 6. d3 {[%emt 0:00:14]} h6 {[%emt 0:05:20]} 7. Nbd2 {[%emt 0:01:08]} Nbd7 {[%emt 0:00:25]} 8. Re1 {[%emt 0:06:19]} e5 {[%emt 0:03:31]} 9. e4 {[%emt 0:00:27]} dxe4 {[%emt 0:00:32]} 10. dxe4 {[%emt 0:00:07]} Be6 {[%emt 0:00:43]} 11. b3 {[%emt 0:01:38]} Qc7 {[%emt 0:10:14]} 12. Bb2 {[%emt 0:01:34]} a5 {[%emt 0:03:32]} 13. Qe2 {[%emt 0:02:46]} Nh7 {[%emt 0:10:07]} 14. Nc4 {[%emt 0:03:17]} f6 {[%emt 0:00:06]} 15. Nh4 {[%emt 0:03:35]} Bf7 {[%emt 0:11:59]} 16. Red1 {[%emt 0:00:33]} b5 {[%emt 0:01:28]} 17. Ne3 {[%emt 0:01:58]} a4 {[%emt 0:02:21]} 18. Bf3 {[%emt 0:09:22]} g6 {[%emt 0:09:05]} 19. Bg2 {[%emt 0:09:22]} Ng5 {[%emt 0:06:11]} 20. Ng4 {[%emt 0:07:32]} a3 {[%emt 0:02:06]} 21. Bc1 {[%emt 0:04:52]} O-O-O {[%emt 0:06:28]} 22. c3 {[%emt 0:07:19]} Be7 {[%emt 0:07:16]} 23. b4 {[%emt 0:00:46]} Nb6 {[%emt 0:05:35]} 24. Rxd8+ {[%emt 0:09:12]} Qxd8 {[%emt 0:01:50]} 25. Bxa3 {[%emt 0:00:50]} Qg8 {[%emt 0:02:32]} 26. Bc1 {[%emt 0:01:54]} Be6 {[%emt 0:00:40]} 27. Be3 {[%emt 0:06:29]} Na4 {[%emt 0:01:54]} 28. Qd2 {[%emt 0:00:29]} Nf7 {[%emt 0:01:31]} 29. a3 {[%emt 0:03:19]} h5 {[%emt 0:01:04]} 30. Nh2 {[%emt 0:00:08]} Nd6 {[%emt 0:00:22]} 31. Nf1 {[%emt 0:00:42]} Kc7 {[%emt 0:02:15]} 32. Qe1 {[%emt 0:01:50]} Nc4 {[%emt 0:02:23]} 33. Nd2 {[%emt 0:00:55]} Ncb2 {[%emt 0:00:26]} 34. Qc1 {[%emt 0:01:58]} f5 {[%emt 0:00:42]} 35. Ndf3 {[%emt 0:02:41]} Nd3 {[%emt 0:00:48]} 36. Qd2 {[%emt 0:00:25]} fxe4 {[%emt 0:00:33]} 37. Ng5 {[%emt 0:00:32]} Bxg5 {[%emt 0:00:15]} 38. Bxg5 {[%emt 0:00:10]} Bf5 {[%emt 0:01:28]} 39. Qe3 {[%emt 0:02:30]} Qc4 {[%emt 0:00:47]} 40. Qa7+ {[%emt 0:00:18]} Kd6 {[%emt 0:00:26]} 41. Nxf5+ {[%emt 0:30:23]} gxf5 {[%emt 0:30:09]} 42. Qe7+ {[%emt 0:00:07]} Kd5 {[%emt 0:00:10]} 43. Qd7# {[%emt 0:00:04]} 1-0

[Event "Elitserien Allsvenskan 2018-19"]
[Site "Sweden"]
[Date "2018.11.11"]
[Round "3"]
[White "Wedberg, Tom"]
[Black "Vernersson, Per"]
[Result "1/2-1/2"]
[ECO "B17"]
[WhiteElo "2439"]
[BlackElo "2296"]
[Annotator "NA RC"]
[PlyCount "61"]
[EventDate "2018.11.09"]
[EventType "team-tourn"]
[EventCountry "SWE"]
[SourceTitle "playchess.com"]
[Source "ChessBase"]
[SourceQuality "1"]
[TimeControl "40/5400+30:1800+30"]

1. e4 {[%emt 0:06:40]} c6 {[%emt 0:00:00]} 2. d4 {[%emt 0:00:08]} d5 {[%emt 0:00:00]} 3. Nd2 {[%emt 0:00:05]} dxe4 {[%emt 0:00:00]} 4. Nxe4 {[%emt 0:00:06]} Nd7 {[%emt 0:00:16]} 5. Bc4 {[%emt 0:00:26]} Ngf6 {[%emt 0:00:16]} 6. Ng5 {[%emt 0:00:07]} e6 {[%emt 0:00:20]} 7. Qe2 {[%emt 0:00:05]} Nb6 {[%emt 0:00:27]} 8. Bd3 {[%emt 0:00:05]} h6 {[%emt 0:00:36]} 9. N5f3 {[%emt 0:00:05]} Nbd7 {[%emt 0:03:14]} 10. Bd2 {[%emt 0:10:19]} c5 {[%emt 0:01:36]} 11. O-O-O {[%emt 0:01:35]} cxd4 {[%emt 0:05:42]} 12. Nxd4 {[%emt 0:04:37]} Nc5 {[%emt 0:00:38]} 13. Bb5+ {[%emt 0:02:56]} Bd7 {[%emt 0:00:50]} 14. Ngf3 {[%emt 0:02:05]} a6 {[%emt 0:02:35]} 15. Bxd7+ {[%emt 0:03:47]} Qxd7 {[%emt 0:01:00]} 16. Kb1 {[%emt 0:08:02]} Be7 {[%emt 0:15:16]} 17. Bf4 {[%emt 0:06:28]} Qa4 {[%emt 0:08:05]} 18. b3 {[%emt 0:15:03]} Qa5 {[%emt 0:04:50]} 19. Bd2 {[%emt 0:03:06]} Qb6 {[%emt 0:01:59]} 20. Ne5 {[%emt 0:13:15]} Nce4 {[%emt 0:02:18]} 21. Be1 {[%emt 0:01:33]} Qc7 {[%emt 0:04:59]} 22. Nc4 {[%emt 0:04:46]} b5 {[%emt 0:01:46]} 23. f3 {[%emt 0:03:09]} bxc4 {[%emt 0:00:59]} 24. fxe4 {[%emt 0:00:14]} O-O {[%emt 0:00:21]} 25. Rf1 {[%emt 0:04:55]} Rfc8 {[%emt 0:05:46]} 26. Rf3 {[%emt 0:00:57]} Qe5 {[%emt 0:00:59]} 27. Re3 {[%emt 0:00:33]} a5 {[%emt 0:03:42]} 28. Bg3 {[%emt 0:04:26]} Qg5 {[%emt 0:03:54]} 29. Nf3 {[%emt 0:02:15]} Qc5 {[%emt 0:07:35]} 30. Rc3 {[%emt 0:00:13]} Qb4 {[%emt 0:00:21]} 31. Be1 {[%emt 0:00:13]} 1/2-1/2

[Event "Elitserien Allsvenskan 2018-19"]
[Site "Sweden"]
[Date "2018.11.11"]
[Round "3"]
[White "Ertan, Can"]
[Black "Salomon, Johan"]
[Result "1/2-1/2"]
[ECO "B50"]
[WhiteElo "2416"]
[BlackElo "2485"]
[Annotator "ChessBase"]
[PlyCount "52"]
[EventDate "2018.11.09"]
[EventType "team-tourn"]
[EventCountry "SWE"]
[SourceTitle "playchess.com"]
[Source "ChessBase"]
[SourceQuality "1"]
[TimeControl "40/5400+30:1800+30"]

1. e4 {[%emt 0:00:00]} c5 {[%emt 0:00:00]} 2. Nf3 {[%emt 0:00:00]} d6 {[%emt 0:00:00]} 3. c3 {[%emt 0:00:00]} Nf6 {[%emt 0:00:15]} 4. Qc2 {[%emt 0:00:00]} Qc7 {[%emt 0:00:54]} 5. Bc4 {[%emt 0:00:00]} Bg4 {[%emt 0:00:34]} 6. d3 {[%emt 0:12:52]} Bxf3 {[%emt 0:03:14]} 7. gxf3 {[%emt 0:00:05]} e6 {[%emt 0:01:31]} 8. Qe2 {[%emt 0:01:52]} Nc6 {[%emt 0:03:17]} 9. f4 {[%emt 0:02:23]} O-O-O {[%emt 0:01:17]} 10. Bb3 {[%emt 0:00:02]} g6 {[%emt 0:06:44]} 11. Nd2 {[%emt 0:07:31]} Bh6 {[%emt 0:13:44]} 12. Nf3 {[%emt 0:02:15]} d5 {[%emt 0:02:52]} 13. Ng5 {[%emt 0:07:32]} dxe4 {[%emt 0:24:01]} 14. dxe4 {[%emt 0:05:03]} Nh5 {[%emt 0:00:14]} 15. Qe3 {[%emt 0:00:52]} Bxg5 {[%emt 0:01:49]} 16. fxg5 {[%emt 0:00:09]} Ne5 {[%emt 0:00:11]} 17. Bc2 {[%emt 0:00:54]} h6 {[%emt 0:07:43]} 18. f4 {[%emt 0:09:41]} Nc4 {[%emt 0:00:22]} 19. Qe2 {[%emt 0:00:07]} Nb6 {[%emt 0:02:50]} 20. Rf1 {[%emt 0:04:26]} hxg5 {[%emt 0:01:20]} 21. fxg5 {[%emt 0:00:05]} Rhf8 {[%emt 0:05:15]} 22. Bd2 {[%emt 0:00:30]} Nd7 {[%emt 0:00:42]} 23. O-O-O {[%emt 0:00:45]} Ne5 {[%emt 0:00:15]} 24. Be3 {[%emt 0:01:37]} a6 {[%emt 0:01:51]} 25. Kb1 {[%emt 0:06:03]} Rxd1+ {[%emt 0:01:00]} 26. Rxd1 {[%emt 0:00:49]} Rd8 {[%emt 0:01:04]} 1/2-1/2

[Event "Elitserien Allsvenskan 2018-19"]
[Site "Sweden"]
[Date "2018.11.11"]
[Round "3"]
[White "Jepson, Christian"]
[Black "Larsson, Johan"]
[Result "1/2-1/2"]
[ECO "D34"]
[WhiteElo "2402"]
[BlackElo "2195"]
[Annotator "NA"]
[PlyCount "88"]
[EventDate "2018.11.09"]
[EventType "team-tourn"]
[EventCountry "SWE"]
[SourceTitle "playchess.com"]
[Source "ChessBase"]
[SourceQuality "1"]
[TimeControl "40/5400+30:1800+30"]

1. d4 {[%emt 0:00:00]} d5 {[%emt 0:00:40]} 2. Nf3 {[%emt 0:00:00]} e6 {[%emt 0:00:58]} 3. c4 {[%emt 0:00:31]} c5 {[%emt 0:01:17]} 4. cxd5 {[%emt 0:02:51]} exd5 {[%emt 0:00:24]} 5. g3 {[%emt 0:00:07]} Nc6 {[%emt 0:01:31]} 6. Bg2 {[%emt 0:00:06]} Nf6 {[%emt 0:00:40]} 7. O-O {[%emt 0:00:17]} Be7 {[%emt 0:01:00]} 8. Nc3 {[%emt 0:00:14]} O-O {[%emt 0:00:23]} 9. dxc5 {[%emt 0:00:07]} Bxc5 {[%emt 0:01:17]} 10. Na4 {[%emt 0:00:38]} Be7 {[%emt 0:05:11]} 11. Be3 {[%emt 0:00:10]} Re8 {[%emt 0:06:52]} 12. Rc1 {[%emt 0:00:52]} Bg4 {[%emt 0:03:07]} 13. Nc5 {[%emt 0:00:40]} Bxc5 {[%emt 0:01:39]} 14. Bxc5 {[%emt 0:00:16]} Qd7 {[%emt 0:00:34]} 15. Re1 {[%emt 0:10:42]} Rad8 {[%emt 0:04:24]} 16. Nd4 {[%emt 0:03:09]} Ne5 {[%emt 0:10:41]} 17. Bxa7 {[%emt 0:05:54]} b6 {[%emt 0:20:11]} 18. Bxb6 {[%emt 0:02:14]} Rb8 {[%emt 0:00:13]} 19. Bc7 {[%emt 0:05:55]} Rxb2 {[%emt 0:01:47]} 20. Bxe5 {[%emt 0:00:10]} Rxe5 {[%emt 0:00:42]} 21. Rc2 {[%emt 0:01:44]} Rb6 {[%emt 0:05:54]} 22. Qa1 {[%emt 0:18:23]} h5 {[%emt 0:05:46]} 23. Rb1 {[%emt 0:08:14]} Rxb1+ {[%emt 0:10:38]} 24. Qxb1 {[%emt 0:00:07]} h4 {[%emt 0:01:24]} 25. Rb2 {[%emt 0:08:24]} g6 {[%emt 0:01:44]} 26. Rb8+ {[%emt 0:08:24]} Kg7 {[%emt 0:00:28]} 27. Qb4 {[%emt 0:01:08]} Nh7 {[%emt 0:06:04]} 28. Qb2 {[%emt 0:07:56]} Nf6 {[%emt 0:00:27]} 29. Rb6 {[%emt 0:00:29]} Qa4 {[%emt 0:02:44]} 30. Bf1 {[%emt 0:09:48]} Qd1 {[%emt 0:01:23]} 31. e3 {[%emt 0:01:45]} hxg3 {[%emt 0:02:07]} 32. hxg3 {[%emt 0:00:05]} Bh3 {[%emt 0:01:18]} 33. Qe2 {[%emt 0:02:08]} Qa1 {[%emt 0:01:11]} 34. Nc2 {[%emt 0:02:18]} Bxf1 {[%emt 0:01:33]} 35. Qxf1 {[%emt 0:00:07]} Qxa2 {[%emt 0:00:12]} 36. Qa1 {[%emt 0:01:15]} Qxa1+ {[%emt 0:00:41]} 37. Nxa1 {[%emt 0:00:04]} d4 {[%emt 0:00:26]} 38. Nc2 {[%emt 0:00:43]} d3 {[%emt 0:00:48]} 39. Nd4 {[%emt 0:00:07]} d2 {[%emt 0:00:29]} 40. Rb1 {[%emt 0:00:16]} Rc5 {[%emt 0:00:37]} 41. Nb3 {[%emt 0:07:11]} Rc2 {[%emt 0:05:59]} 42. Rd1 {[%emt 0:00:20]} Ne4 {[%emt 0:01:42]} 43. f3 {[%emt 0:00:21]} Nxg3 {[%emt 0:01:29]} 44. Kf2 {[%emt 0:01:52]} Nf5 {[%emt 0:03:55]} 1/2-1/2